Cogmind - Beta 16 *** ADVENTURER MODE // 2025.10.26 @ 23:37:17 // AFD2020/Player2 Player: RogirekTheMad Result: Core destroyed Performance ------------- Evolutions (0) 0 Regions Visited (2) 400 Robots Destroyed (8) 40 Value Destroyed (229) 229 Prototype IDs (0) 0 Alien Tech Used (0) 0 Bonus (233) 233 TOTAL SCORE: 902 Bonus ------- Follower Combat Kills 245 Friendly Fire -12 Cogmind --------- Core Integrity 0/250 Matter 300/300 Energy 122/160 System Corruption 0% Temperature Cool (36) Movement Rolling (120) Ox1 Location -10/Subcaves Parts ------- > --- POWER (1) -------- Light Nuclear Core > --- PROPULSION (2) --- Subdweller Monowheel Subdweller Monowheel > --- UTILITY (2) ------ Small Storage Unit Light Armor Plating > --- WEAPON (2) ------- Subdweller Laser Beamcaster > --- INVENTORY (8) ---- Light Angular Momentum Engine Improved Heat Sink High-capacity Matter Pod (200) Subdweller Optics Scrap Shield Datajack Peak State ------------ > --- POWER ------------ Light Nuclear Core > --- PROPULSION ------- Subdweller Monowheel Subdweller Monowheel > --- UTILITY ---------- Small Storage Unit Light Armor Plating > --- WEAPON ----------- Subdweller Laser Beamcaster > --- INVENTORY -------- Ion Engine Subdweller Monowheel High-capacity Matter Pod Subdweller Optics Scrap Shield Datajack [Rating: 17] Favorites ----------- Power Light Ion Engine Engine Light Ion Engine Power Core Light Nuclear Core Propulsion Compact Wheel Treads Light Treads Wheel Compact Wheel Utility Small Storage Unit Storage Small Storage Unit Protection Light Armor Plating Weapon Mining Laser Energy Gun Medium Laser Special Weapon Mining Laser Build | -11 -10 -10 ------- Run | Yrd Mat Sub Slots Evolved . | . . . Power . | . . . Propulsion . | . . . Utility . | . . . Weapon . | . . . Parts Attached 19 | 6 7 6 Power 3 | 1 2 . Engine 2 | 1 1 . Core 1 | . 1 . Reactor . | . . . Propulsion 7 | 3 . 4 Treads 1 | 1 . . Leg . | . . . Wheel 6 | 2 . 4 Hover . | . . . Flight . | . . . Utility 2 | 1 1 . Device . | . . . Storage 1 | 1 . . Processor . | . . . Hackware . | . . . Protection 1 | . 1 . Artifact . | . . . Weapon 7 | 1 4 2 Energy Gun 5 | 1 2 2 Energy Cannon . | . . . Ballistic Gun . | . . . Ballistic Cannon . | . . . Launcher . | . . . Special Weapon 2 | . 2 . Impact Weapon . | . . . Slashing Weapon . | . . . Piercing Weapon . | . . . Special Melee Weapon . | . . . Unidentified Prototypes . | . . . Parts Lost 1 | . . 1 Power . | . . . Propulsion 1 | . . 1 Utility . | . . . Weapon . | . . . Highest Loss Streak 1 | . . 1 To Critical Strikes . | . . . Average Backups 5 | 4 6 6 Power . | . . . Propulsion . | 1 . . Utility 1 | . 1 3 Weapon 2 | 1 3 . Tool/Special . | . . . Unused Backups 21 | 1 12 8 Power 2 | . 1 1 Propulsion 3 | 1 2 . Utility 5 | . . 5 Weapon 10 | . 9 1 Tool/Special 1 | . . 1 Average Slot Usage (%) 97 | . 96 98 Engine 6 | . 10 . Core 7 | . 3 14 Wheel 27 | . 28 27 Storage 14 | . 14 14 Protection 13 | . 13 14 Energy Gun 15 | . 8 27 Special Weapon 10 | . 17 . Peak Build Rating 17 | 5 11 17 Average Rating 8 | 4 7 14 On Entrance 5 | . 5 11 Avg Prop Armor Cover (%) 4 | 4 . 4 Naked Turns . | . . . Heaviest Build 22 | 10 19 22 Greatest Support 40 | 32 32 40 Greatest Overweight (x) 7 | . . 7 Average Overweight (x) . | . . . Largest Inventory Capacity 8 | 8 8 8 Average Capacity 7 | 7 8 8 Most Carried 8 | 5 8 8 Average Carried 5 | 4 6 7 Final Capacity 8 | 8 8 8 Final Carried 7 | 5 7 7 Class Distribution -------------------- 83% | Mutant 16% | Scavenger-Mutant Dominant Class ---------------- Mutant | -10/Materials Scavenger-Mutant | -10/Subcaves Resources | -11 -10 -10 ----------- Run | Yrd Mat Sub Matter Collected 533 | 236 212 85 Remotely . | . . . Salvage Created 197 | . 48 149 Parts 10 | . 6 4 Haulers Intercepted . | . . . Recyclers Shooed . | . . . Parts Field Recycled . | . . . Retrieved Matter . | . . . Parts Self-Destructed 6 | . . 6 Prevented . | . . . Parts Restored . | . . . Kills | -11 -10 -10 ------- Run | Yrd Mat Sub Combat Hostiles Destroyed 7 | . 3 4 Guns 5 | . 1 4 Cannons 2 | . 2 . Classes Destroyed 5 | . 3 2 Watcher 1 | . 1 . Swarmer 2 | . 1 1 Grunt 2 | . 2 . Sentry 1 | . . 1 Subdweller 2 | . . 2 Best Kill Streak 2 | . 1 2 Combat Bots Only 2 | . 1 2 Max Kills in Single Turn 1 | . 1 1 Gunslinging . | . . . Exploded . | . . . Melee . | . . . Uniques/NPCs Destroyed . | . . . Combat | -11 -10 -10 -------- Run | Yrd Mat Sub Hostile Shots Fired 29 | . 8 21 Missed 8 | . 3 5 Hits 21 | . 5 16 Projectile 21 | . 5 16 Critical Strikes 1 | . . 1 Damage Taken 302 | . 45 257 Core 85 | . 18 67 Absorbed by Shields . | . . . Ignored by Resistances 88 | . 14 74 Core Remaining (%) 100 | 100 . . Volleys Fired 33 | . 17 16 Largest 2 | . 2 2 Hottest 200 | . 200 135 Shots Fired 59 | . 27 32 Gun 48 | . 16 32 Cannon . | . . . Launcher . | . . . Special 11 | . 11 . Kinetic . | . . . Thermal 59 | . 27 32 Explosive . | . . . Electromagnetic . | . . . Robot Hit Streak 31 | . 10 31 Robot Miss Streak 8 | . 8 2 Penetration Max . | . . . Secondary Targets . | . . . Shots Hit Robots 41 | . 19 22 Core Hits 29 | . 12 17 Critical Kills . | . . . Critical Parts Destroyed . | . . . Critical Strikes 1 | . . 1 Burn 1 | . . 1 Melee Attacks . | . . . Impact . | . . . Slashing . | . . . Piercing . | . . . Sneak Attacks . | . . . Combat Hostiles . | . . . Follow-up Attacks . | . . . Damage Inflicted 603 | . 313 290 Guns 459 | . 169 290 Cannons . | . . . Explosions . | . . . Melee . | . . . Ramming . | . . . Kinetic . | . . . Thermal 603 | . 313 290 Explosive . | . . . Electromagnetic . | . . . Impact . | . . . Slashing . | . . . Piercing . | . . . Highest Corruption . | . . . Average Corruption . | . . . Corruption Purged . | . . . Corruption Blocked . | . . . Overload Shots . | . . . Overflow Damage . | . . . Projectiles . | . . . Explosions . | . . . Melee . | . . . Knockbacks . | . . . Impact . | . . . Kinetic . | . . . Secondary . | . . . Self-Inflicted Damage . | . . . Shots . | . . . Rammed . | . . . Targets Rammed . | . . . Kicked . | . . . Crushed . | . . . Highest Temperature 194 | . 168 194 Average Temperature 56 | . 50 68 Received Heat Transfer 93 | . . 93 Siege Activations . | . . . Martial Activations . | . . . Shielding Activations . | . . . Robots Disrupted . | . . . Combat Hostiles . | . . . Robots Corrupted . | . . . Combat Hostiles . | . . . Parts Fried . | . . . Impact Corruptions . | . . . Robots Melted . | . . . Combat Hostiles . | . . . Parts Melted . | . . . Heat Transferred 1069 | . 603 466 Parts Sabotaged . | . . . Parts Stolen . | . . . Parts Stripped . | . . . Power Chain Reactions . | . . . Alert | -11 -10 -10 ------- Run | Yrd Mat Sub Maximum Alert Level . | . . . Low Security (%) 100 | 100 100 . Level 1 . | . . . Level 2 . | . . . Level 3 . | . . . Level 4 . | . . . Level 5 . | . . . High Security . | . . . Max Security . | . . . Peak Influence 68 | . 68 . Initial . | . . . Average 8 | . 17 . Influence Increases 409 | . 275 134 Destroy 0b10 Robot/C 240 | . 200 40 Destroy 0b10 Robot/NC 5 | . 5 . Destroy Leader 42 | . 42 . Allied During Kill 28 | . 24 4 Destroy Structure 4 | . 4 . Lose Combat Pursuer 90 | . . 90 Influence Decreases 315 | . 275 40 Time Decay 295 | . 275 20 Lost Part 20 | . . 20 Squads Dispatched 1 | . 1 . Investigation 1 | . 1 . Extermination . | . . . Reinforcement . | . . . Assault . | . . . Garrison . | . . . Intercept . | . . . Searches Triggered . | . . . Construction Impeded . | . . . Haulers Reinforced . | . . . Active Scanning Responses . | . . . Cargo Convoy Interrupts . | . . . Stealth | -11 -10 -10 --------- Run | Yrd Mat Sub Distress Signals 1 | . 1 . Communications Jammed . | . . . Distress Signals . | . . . Times Spotted 39 | . 18 21 Peak Tracking Total 10 | . 4 10 Tactical Retreats 3 | . . 3 Traps | -11 -10 -10 ------- Run | Yrd Mat Sub Traps Triggered 2 | . 2 . Indirectly . | . . . Trap Hack Attempts . | . . . Triggered . | . . . Disarmed . | . . . Reprogrammed . | . . . Reused . | . . . Traps Extracted . | . . . Installed . | . . . Triggered . | . . . Machines | -11 -10 -10 ---------- Run | Yrd Mat Sub Machines Disabled . | . . . Max in Single Turn . | . . . Machines Repaired . | . . . Machines Dismantled . | . . . Machines Sabotaged . | . . . Overloaded Fab Kills . | . . . Hacking | -11 -10 -10 --------- Run | Yrd Mat Sub Machines Accessed 3 | . 3 . Terminals 2 | . 2 . Fabricators . | . . . Repair Stations . | . . . Recycling Units 1 | . 1 . Scanalyzers . | . . . Garrison Access . | . . . Total Hacks 7 | . 7 . Successful 5 | . 5 . Failed 2 | . 2 . Catastrophic . | . . . Database Lockouts . | . . . Manual . | . . . Terminals 4 | . 4 . Fabricators . | . . . Repair Stations . | . . . Recycling Units 3 | . 3 . Scanalyzers . | . . . Garrison Access . | . . . Terminal Hacks 3 | . 3 . Record 2 | . 2 . Maintenance Status 1 | . 1 . Fabricator Hacks . | . . . Repair Station Hacks . | . . . Recycling Unit Hacks 2 | . 2 . Report Inventory 1 | . 1 . Retrieve Matter 1 | . 1 . Scanalyzer . | . . . Garrison Access Hacks . | . . . Unauthorized Hacks . | . . . Terminals . | . . . Fabricators . | . . . Repair Stations . | . . . Recycling Units . | . . . Scanalyzers . | . . . Garrison Access . | . . . Data Cores Recovered . | . . . Used . | . . . Hacking Detections 1 | . 1 . Full Trace Events . | . . . Feedback Events . | . . . Feedback Blocked . | . . . Robot Schematics Acquired . | . . . Robots Built . | . . . Authchips . | . . . Time . | . . . Total Robot Build Rating . | . . . Part Schematics Acquired . | . . . Parts Built . | . . . Authchips . | . . . Time . | . . . Total Part Build Rating . | . . . Part Studies Acquired . | . . . Parts Repaired . | . . . Time . | . . . Parts Recycled . | . . . Recycled Matter . | . . . Retrieved Matter 92 | . 92 . Retrieved Components . | . . . Parts Scanalyzed . | . . . Part Schematics Acquired . | . . . Parts Damaged . | . . . Bothacking | -11 -10 -10 ------------ Run | Yrd Mat Sub Used RIF Installer . | . . . Robots Hacked . | . . . Non-combat . | . . . Combat . | . . . Robot Hacks Applied . | . . . Relay Couplers Released . | . . . Fabnet Peak Effective % . | . . . Robots Rewired . | . . . Allies Hacked . | . . . Hacks Repelled . | . . . Allies | -11 -10 -10 -------- Run | Yrd Mat Sub Total Allies 1 | . 1 . Largest Group 1 | . 1 1 Highest-Rated Group 65 | . 59 65 Highest-Rated Ally 65 | . 59 65 Total Orders . | . . . Ally Attacks 41 | . 23 18 Total Damage 801 | . 336 465 Kills 12 | . 7 5 Allies Corrupted . | . . . Allies Melted . | . . . Intel | -11 -10 -10 ------- Run | Yrd Mat Sub Active Infowar (turns) . | . . . Robot Analysis Total . | . . . Derelict Logs Recovered . | . . . Drone Launches . | . . . Drone Recoveries . | . . . Exploration | -11 -10 -10 ------------- Run | Yrd Mat Sub Turns Passed 2547 | 980 942 625 Spaces Moved 1676 | 454 774 448 Core 17 | 13 . 4 Treads 3 | 3 . . Legs . | . . . Wheels 1656 | 438 774 444 Hover . | . . . Flight . | . . . Fastest Speed 50 | 50 100 100 Average Speed 102 | 98 100 110 Slowest Speed 400 | 160 100 400 Overloaded Moves . | . . . Propulsion Burnouts . | . . . Robots Hopped . | . . . Potential Cave-ins . | . . . Cave-ins Triggered . | . . . Exploration Rate (%) 39 | 33 61 23 Regions Visited 2 Branch Regions 1 Pre-discovered Areas . | . . . Known Exits Taken . | . . . Unknown Exits Taken 2 | 1 1 . Scrap Searched . | . . . Spaces Dug 1 | . 1 . Terrain Destroyed 4 | . 4 . Melee . | . . . Projectile 4 | . 4 . AOE . | . . . Terrain Rammed . | . . . Walls Destroyed . | . . . Machines Disabled . | . . . Actions | -11 -10 -10 --------- Run | Yrd Mat Sub Total 2435 | 984 898 553 Wait 631 | 510 62 59 Move 1674 | 453 773 448 Hop . | . . . Pick Up 45 | 12 21 12 Fast Attach . | . . . Attach 14 | 5 5 4 Detach . | . . . Swap 9 | 2 5 2 Drop 29 | 2 15 12 Fire 33 | . 17 16 Melee . | . . . Ram . | . . . Kick . | . . . Crush . | . . . Escape Stasis . | . . . Rewire . | . . . Trap . | . . . Miscellaneous . | . . . Route ------- -11/Scrapyard -10/Materials (discovered 4 exits: [*Mat x2] / [*Min] / [*Sub]) -10/Subcaves (discovered 1 exit: [*Rec]) History --------- Turn | Location | Event 8 | -11/Scrapyard | Discovered new exit (range 15) 981 | -11/Scrapyard | Entered Materials 982 | -10/Materials | Build established: Mutant 1096 | -10/Materials | Discovered new exit (range 15) 1274 | -10/Materials | Discovered new exit (range 8) 1793 | -10/Materials | Discovered new exit (range 16) 1872 | -10/Materials | Discovered new exit (range 9) 1923 | -10/Materials | Entered Subcaves 1924 | -10/Subcaves | Approached by a straggling Scientist 2085 | -10/Subcaves | Ambushed by swarm of Subdwellers 2110 | -10/Subcaves | Core integrity fell below 50% 2121 | -10/Subcaves | Lost 3 allies 2432 | -10/Subcaves | Build established: Scavenger-Mutant 2519 | -10/Subcaves | Core integrity fell below 20% 2542 | -10/Subcaves | Discovered new exit (range 10) 2548 | -10/Subcaves | Core destroyed Last Messages --------------- 02515_ Player 2 follow-up attacks with Flail. 02515_ S-10 Pest system corrupted by crushing effect. 02515_ S-10 Pest suffers critical hit (Destroy). 02515_ S-10 Pest destroyed. 02521_ Y-45 Defender suffers critical hit (Burn). 02523_ Flight Unit fries itself beyond repair. 02523_ HV Slug penetrates Wall. 02523_ S-10 Pest suffers critical hit (Destroy). 02524_ Flight Unit fries itself beyond repair. 02524_ S-10 Pest destroyed. 02527_ HV Slug penetrates Wall. 02527_ G-34 Mercenary destroyed. 02528_ Flight Unit fries itself beyond repair. 02528_ Player 2 attaches Spk. Treads. 02529_ Y-45 Defender destroyed. 02534_ Lgt. Assault Rifle fries itself beyond repair. 1O-1AA(c): "I think it's somewhere south of here" 02542_ EXIT=FOUND Player 2: "Have an extra power source?" 02548_ Player 2 follow-up attacks with Flail. Map ----- +----------------------------------------------------+ | ?????????????????????????????????????????????????? | | ?????????????????????????????????????????????????? | | ?????????????????????????????????????????????????? | | ?????????????????????????????????????????????????? | | ?????????????????????????????????????????????????? | | ?????????????????????????????????????????????????? | | ?????????????????????????????????????????????????? | | ?????????????????????????????????????????????????? | | ?????????????????????????????????????????????????? | | ?????????????????????????????????????????????????? | | ?????????? #??????? "????????????????????????? | | #??????# ##????"" ????????????????????????? | | #??????# #???# ????????????????????????? | | ##????## ???# ????????????????????????? | | #???## ??? #???????????????????????? | | ????? ??? #???????????????????????? | | ?????? ??? ##??????????????????????? | | #???????# ????? ###????????????????????? | | #???????# ????? ##???????????????????? | | ####????? #????? ##??????????????????? | | ###????# ####### ;#??????????????????? | | ###???# # ## ;#??????????????????? | | #???# %%% #???????????????????? | | #????# [ #???????????????????? | | #?#### %%#" # ##???????????????????? | | ### %% #### @ #????????????????????? | | #?## #????????????????????? | | #### ## #?? "??????????????????? | | #??## ## #?? #?????????????????? | | #???## #### #? @ #?????????????????? | | ##????# ##??###? t t "#?????????????????? | | #?????########??????" " " "#?????????????????? | | #???????????????????"""" """"#?????????????????? | | #??????????????????#####<#####?????????????????? | | #???????????????????????##?????????????????????? | | ##?###??????????????????????????????????????????? | | #??# ####???????????????????????????????????????? | | ##?# #???????????????????????????????????????? | | ### ##??????????????????????????????????????? | | ##?????????????????????????????????????? | | #?????????????????????????????????????? | | #?????????????????????????????????????? | | ### ##?????????????????????????????????????? | | #?## ##??????????????????????????????????????? | | #### ##???????????????????????????????????????? | | #????????????????????????????????????????? | | ###????????????????????????????????????????? | | # ## #??????????????????????????????????????????? | | ##### #??????????????????????????????????????????? | | ????# ##?????????????????????????????????????????? | +----------------------------------------------------+ Best States ------------- Heat Dissipation 25 Energy Generation 14 Energy Capacity 250 Matter Stores 300 Matter Capacity 300 Sight Range 16 Terrain Scan Density 10 Armor Coverage 150 Resistance: KI 20 Resistance: TH 20 Resistance: EX 20 Resistance: EM 20 Resistance: I 20 Resistance: S 20 Resistance: P 20 Evasion (%) 50 Recoil Reduction 1 Offensive Hacking 10 Item Schematics ----------------- None Robot Schematics ------------------ None Fabricated ------------ Nothing Repaired ---------- Nothing Studied --------- None Alien Tech Used ----------------- None Achievements -------------- DATA ERROR: Steam Global Achievement% Organ Harvest Challenges ------------ None Player 2 | -11 -10 -10 ---------- Run | Yrd Mat Sub Slots Evolved . | . . . Power . | . . . Propulsion . | . . . Utility . | . . . Weapon . | . . . Parts Attached 23 | . 18 5 Parts Lost 3 | . . 3 Damage Taken 869 | . 296 573 Core 168 | . 43 125 Player 2/Cogmind (%) 66 | . 70 65 Absorbed by Shields . | . . . Damage Inflicted 801 | . 336 465 Player 2/Cogmind (%) 57 | . 51 61 Combat Hostiles Destroyed 12 | . 7 5 Player 2/Cogmind (%) 63 | . 70 55 Game ------ Seed CouplerColdManipulator Manual? 0 Play Time 00:28:20 Cumulative 84.1 hours Start 2025.10.26 @ 23:07:29 End 2025.10.26 @ 23:37:17 Sessions 1 Manual Loads 0 Difficulty Adventurer Special Mode AFD2020/Player2 Game No. 53 Rogue 9 Adventurer 44 Explorer 0 Win Type - Total 1 Types 1/0/0/0/0/0/0/0/0/0 Lore% 26 Gallery% 43 Achievement% 25 Wizard Run 0 Options --------- Layout 1 ASCII 0 Keyboard 0 Movement Numpad Keybinds 0 Fullscreen 1 Font 32/SmallcapsGlow Map View 77x35 Zoom Use 0% Tactical HUD 1 Map Filters NONE Filters NONE Steam 1 RUN: 7899df38-bc59-485b-859f-ba4594f1bd3d